[Event "Titled Tuesday Blitz April 25 Early 2023"]
[White "Aaditya Dhingra"]
[Black "Matveeva, Olga"]
[WhiteFideId "25678191"]
[BlackFideId "24107018"]
[WhiteElo "2083"]
[BlackElo "2056"]
[Result "1/2-1/2"]
[Round "01"]
[TimeControl "180+2"]
[Date "2023.04.25"]
[WhiteClock "0:00:21"]
[BlackClock "0:00:14"]

1. e4 {[%clk 0:02:59]}  e6 {[%clk 0:03:00]} 2. d4 {[%clk 0:02:58]}  d5 {[%clk 0:03:01]} 3. Nc3 {[%clk 0:02:58]}  Nf6 {[%clk 0:03:00]} 4. Bg5 {[%clk 0:02:56]}  Bb4 {[%clk 0:03:00]} 5. e5 {[%clk 0:02:55]}  h6 {[%clk 0:03:01]} 6. Bd2 {[%clk 0:02:53]}  Bxc3 {[%clk 0:03:01]} 7. bxc3 {[%clk 0:02:53]}  Ne4 {[%clk 0:03:02]} 8. Qg4 {[%clk 0:02:51]}  Kf8 {[%clk 0:03:02]} 9. Nf3 {[%clk 0:02:50]}  c5 {[%clk 0:03:00]} 10. Bd3 {[%clk 0:02:48]}  Nxd2 {[%clk 0:02:59]} 11. Nxd2 {[%clk 0:02:48]}  Nc6 {[%clk 0:02:36]} 12. O-O {[%clk 0:02:46]}  Qg5 {[%clk 0:02:26]} 13. Qxg5 {[%clk 0:02:33]}  hxg5 {[%clk 0:02:27]} 14. f4 {[%clk 0:02:16]}  gxf4 {[%clk 0:02:23]} 15. Rxf4 {[%clk 0:02:15]}  Ke7 {[%clk 0:02:07]} 16. Raf1 {[%clk 0:02:12]}  Rf8 {[%clk 0:02:07]} 17. Rg4 {[%clk 0:01:55]}  Rg8 {[%clk 0:02:00]} 18. Bh7 {[%clk 0:01:52]}  Rf8 {[%clk 0:01:54]} 19. Rxg7 {[%clk 0:01:28]}  cxd4 {[%clk 0:01:53]} 20. cxd4 {[%clk 0:01:28]}  Nxd4 {[%clk 0:01:53]} 21. Bg6 {[%clk 0:01:27]}  Nf5 {[%clk 0:01:49]} 22. Bxf5 {[%clk 0:01:26]}  exf5 {[%clk 0:01:50]} 23. Nf3 {[%clk 0:01:22]}  Be6 {[%clk 0:01:49]} 24. Nd4 {[%clk 0:01:21]}  Rac8 {[%clk 0:01:45]} 25. Rg3 {[%clk 0:01:16]}  Rc4 {[%clk 0:01:39]} 26. Rf4 {[%clk 0:01:15]}  Rfc8 {[%clk 0:01:24]} 27. h4 {[%clk 0:01:12]}  Rh8 {[%clk 0:01:04]} 28. Rg5 {[%clk 0:01:02]}  b5 {[%clk 0:00:34]} 29. Rg7 {[%clk 0:00:53]}  b4 {[%clk 0:00:29]} 30. Nxf5+ {[%clk 0:00:50]}  Bxf5 {[%clk 0:00:28]} 31. Rxf5 {[%clk 0:00:49]}  Rhxh4 {[%clk 0:00:21]} 32. Rgxf7+ {[%clk 0:00:45]}  Ke6 {[%clk 0:00:20]} 33. R7f6+ {[%clk 0:00:44]}  Ke7 {[%clk 0:00:20]} 34. Rg5 {[%clk 0:00:39]}  Rhg4 {[%clk 0:00:16]} 35. Rxg4 {[%clk 0:00:35]}  Rxg4 {[%clk 0:00:17]} 36. Ra6 {[%clk 0:00:33]}  Rc4 {[%clk 0:00:16]} 37. Rxa7+ {[%clk 0:00:32]}  Ke6 {[%clk 0:00:16]} 38. Rb7 {[%clk 0:00:27]}  Kxe5 {[%clk 0:00:16]} 39. Kf1 {[%clk 0:00:25]}  Rxc2 {[%clk 0:00:15]} 40. Rxb4 {[%clk 0:00:25]}  Rxa2 {[%clk 0:00:15]} 41. g4 {[%clk 0:00:25]}  d4 {[%clk 0:00:15]} 42. Ke1 {[%clk 0:00:25]}  Ke4 {[%clk 0:00:15]} 43. Rb3 {[%clk 0:00:22]}  d3 {[%clk 0:00:14]} 44. Rb8 {[%clk 0:00:21]}  Ke3 {[%clk 0:00:15]} 45. Re8+ {[%clk 0:00:21]}  Kf4 {[%clk 0:00:15]} 46. Kd1 {[%clk 0:00:20]}  Kxg4 {[%clk 0:00:14]} 47. Re3 {[%clk 0:00:20]}  d2 {[%clk 0:00:14]} 48. Rd3 {[%clk 0:00:20]}  Kf4 {[%clk 0:00:14]} 49. Rxd2 {[%clk 0:00:20]}  Rxd2+ {[%clk 0:00:14]} 50. Kxd2 {[%clk 0:00:21]} 1/2-1/2


[Site "https://www.chess.com"]

[Event "Titled Tuesday Blitz April 25 Early 2023"]
[White "Pandey Srishti"]
[Black "Bashirli, Nail"]
[WhiteFideId "35093290"]
[BlackFideId "13406809"]
[WhiteElo "2083"]
[BlackElo "2322"]
[Result "0-1"]
[Round "01"]
[TimeControl "180+2"]
[Date "2023.04.25"]
[WhiteClock "0:00:57"]
[BlackClock "0:01:45"]

1. e4 {[%clk 0:02:56]}  Nf6 {[%clk 0:03:00]} 2. e5 {[%clk 0:02:54]}  Nd5 {[%clk 0:02:44]} 3. d4 {[%clk 0:02:47]}  d6 {[%clk 0:02:43]} 4. c4 {[%clk 0:02:46]}  Nb6 {[%clk 0:02:43]} 5. f4 {[%clk 0:02:47]}  dxe5 {[%clk 0:02:41]} 6. fxe5 {[%clk 0:02:43]}  Bf5 {[%clk 0:02:42]} 7. Nf3 {[%clk 0:02:38]}  e6 {[%clk 0:02:43]} 8. Be2 {[%clk 0:02:24]}  Be7 {[%clk 0:02:43]} 9. O-O {[%clk 0:02:20]}  O-O {[%clk 0:02:42]} 10. Nc3 {[%clk 0:02:16]}  f6 {[%clk 0:02:43]} 11. Be3 {[%clk 0:02:07]}  Nc6 {[%clk 0:02:38]} 12. exf6 {[%clk 0:01:55]}  Bxf6 {[%clk 0:02:39]} 13. Rc1 {[%clk 0:01:55]}  Qe7 {[%clk 0:02:39]} 14. c5 {[%clk 0:01:49]}  Nd5 {[%clk 0:02:38]} 15. Nxd5 {[%clk 0:01:48]}  exd5 {[%clk 0:02:39]} 16. Qb3 {[%clk 0:01:48]}  Rae8 {[%clk 0:02:37]} 17. Kf2 {[%clk 0:01:34]}  Be4 {[%clk 0:02:15]} 18. Rfe1 {[%clk 0:01:30]}  Bh4+ {[%clk 0:02:07]} 19. g3 {[%clk 0:01:22]}  Qf6 {[%clk 0:02:06]} 20. Bf4 {[%clk 0:01:14]}  Qxf4 {[%clk 0:02:04]} 21. gxh4 {[%clk 0:01:10]}  Qxh2+ {[%clk 0:01:52]} 22. Kf1 {[%clk 0:01:04]}  Nxd4 {[%clk 0:01:52]} 23. Rc3 {[%clk 0:00:57]}  Nxb3 {[%clk 0:01:45]} 0-1


[Site "https://www.chess.com"]

[Event "Titled Tuesday Blitz April 25 Early 2023"]
[White "Avalos Parra, Joao"]
[Black "De Silva, L M S T"]
[WhiteFideId "3402541"]
[BlackFideId "9953698"]
[WhiteElo "2173"]
[BlackElo "2404"]
[Result "0-1"]
[Round "01"]
[TimeControl "180+2"]
[Date "2023.04.25"]
[WhiteClock "0:01:40"]
[BlackClock "0:01:40"]

1. d4 {[%clk 0:02:59]}  Nf6 {[%clk 0:02:52]} 2. c4 {[%clk 0:02:59]}  e6 {[%clk 0:02:53]} 3. Nf3 {[%clk 0:02:58]}  d5 {[%clk 0:02:53]} 4. Nc3 {[%clk 0:02:58]}  Bb4 {[%clk 0:02:52]} 5. cxd5 {[%clk 0:02:51]}  exd5 {[%clk 0:02:51]} 6. Bg5 {[%clk 0:02:52]}  c6 {[%clk 0:02:50]} 7. e3 {[%clk 0:02:50]}  Bf5 {[%clk 0:02:48]} 8. Qb3 {[%clk 0:02:49]}  Qb6 {[%clk 0:02:46]} 9. Be2 {[%clk 0:02:47]}  Nbd7 {[%clk 0:02:45]} 10. O-O {[%clk 0:02:47]}  O-O {[%clk 0:02:44]} 11. a3 {[%clk 0:02:47]}  Be7 {[%clk 0:02:44]} 12. Qxb6 {[%clk 0:02:41]}  axb6 {[%clk 0:02:45]} 13. Ne5 {[%clk 0:02:39]}  b5 {[%clk 0:02:43]} 14. h3 {[%clk 0:02:30]}  h6 {[%clk 0:02:41]} 15. Bh4 {[%clk 0:02:30]}  g5 {[%clk 0:02:39]} 16. Bg3 {[%clk 0:02:30]}  Nxe5 {[%clk 0:02:39]} 17. Bxe5 {[%clk 0:02:28]}  Nd7 {[%clk 0:02:39]} 18. Bh2 {[%clk 0:02:29]}  b4 {[%clk 0:02:39]} 19. axb4 {[%clk 0:02:28]}  Bxb4 {[%clk 0:02:40]} 20. Bg4 {[%clk 0:02:25]}  Bxg4 {[%clk 0:02:40]} 21. hxg4 {[%clk 0:02:26]}  Rfe8 {[%clk 0:02:36]} 22. Rfc1 {[%clk 0:02:22]}  Nf6 {[%clk 0:02:33]} 23. Rxa8 {[%clk 0:02:14]}  Rxa8 {[%clk 0:02:34]} 24. f3 {[%clk 0:02:14]}  Nd7 {[%clk 0:02:25]} 25. Kf2 {[%clk 0:02:14]}  Nb6 {[%clk 0:02:25]} 26. Ke2 {[%clk 0:02:12]}  Nc4 {[%clk 0:02:24]} 27. b3 {[%clk 0:02:11]}  Bxc3 {[%clk 0:02:10]} 28. bxc4 {[%clk 0:01:47]}  Ra2+ {[%clk 0:02:04]} 29. Kd3 {[%clk 0:01:45]}  Ba5 {[%clk 0:01:54]} 30. cxd5 {[%clk 0:01:43]}  cxd5 {[%clk 0:01:41]} 31. Be5 {[%clk 0:01:40]}  Rd2# {[%clk 0:01:40]} 0-1


[Site "https://www.chess.com"]

[Event "Titled Tuesday Blitz April 25 Early 2023"]
[White "Bronstein, Or"]
[Black "Luukkonen, Tommi"]
[WhiteFideId "2815770"]
[BlackFideId "501808"]
[WhiteElo "2356"]
[BlackElo "2296"]
[Result "1-0"]
[Round "01"]
[TimeControl "180+2"]
[Date "2023.04.25"]
[WhiteClock "0:00:13"]
[BlackClock "0:00:04"]

1. d4 {[%clk 0:02:49]}  Nf6 {[%clk 0:02:55]} 2. Bf4 {[%clk 0:02:48]}  c5 {[%clk 0:02:55]} 3. d5 {[%clk 0:02:47]}  d6 {[%clk 0:02:55]} 4. Nc3 {[%clk 0:02:47]}  e5 {[%clk 0:02:56]} 5. Bd2 {[%clk 0:02:44]}  a6 {[%clk 0:02:55]} 6. a4 {[%clk 0:02:44]}  Be7 {[%clk 0:02:55]} 7. e4 {[%clk 0:02:43]}  O-O {[%clk 0:02:55]} 8. Be2 {[%clk 0:02:42]}  Ne8 {[%clk 0:02:55]} 9. Nf3 {[%clk 0:02:39]}  g6 {[%clk 0:02:55]} 10. Bh6 {[%clk 0:02:38]}  Ng7 {[%clk 0:02:56]} 11. h4 {[%clk 0:02:36]}  f5 {[%clk 0:02:55]} 12. h5 {[%clk 0:02:35]}  Nxh5 {[%clk 0:02:41]} 13. Bxf8 {[%clk 0:02:32]}  Qxf8 {[%clk 0:02:37]} 14. exf5 {[%clk 0:02:27]}  Bxf5 {[%clk 0:02:36]} 15. Nh4 {[%clk 0:02:21]}  Nf4 {[%clk 0:02:34]} 16. Nxf5 {[%clk 0:02:19]}  Qxf5 {[%clk 0:02:33]} 17. Bf3 {[%clk 0:02:14]}  Nd7 {[%clk 0:02:21]} 18. g3 {[%clk 0:01:49]}  Rf8 {[%clk 0:01:18]} 19. gxf4 {[%clk 0:01:01]}  Qxf4 {[%clk 0:01:19]} 20. Rh3 {[%clk 0:01:01]}  e4 {[%clk 0:01:18]} 21. Nxe4 {[%clk 0:01:01]}  Ne5 {[%clk 0:01:18]} 22. Bg2 {[%clk 0:00:59]}  Bh4 {[%clk 0:01:12]} 23. Qe2 {[%clk 0:00:51]}  g5 {[%clk 0:01:01]} 24. Qe3 {[%clk 0:00:28]}  Qg4 {[%clk 0:01:01]} 25. Rxh4 {[%clk 0:00:18]}  gxh4 {[%clk 0:00:38]} 26. Qg5+ {[%clk 0:00:18]}  Qxg5 {[%clk 0:00:36]} 27. Nxg5 {[%clk 0:00:19]}  Rf4 {[%clk 0:00:32]} 28. Ra3 {[%clk 0:00:17]}  Nc4 {[%clk 0:00:25]} 29. Rc3 {[%clk 0:00:13]}  h6 {[%clk 0:00:25]} 30. Bh3 {[%clk 0:00:13]}  hxg5 {[%clk 0:00:23]} 31. Be6+ {[%clk 0:00:14]}  Kg7 {[%clk 0:00:23]} 32. Rb3 {[%clk 0:00:13]}  Re4+ {[%clk 0:00:18]} 33. Kd1 {[%clk 0:00:13]}  Rd4+ {[%clk 0:00:18]} 34. Ke2 {[%clk 0:00:14]}  Rd2+ {[%clk 0:00:12]} 35. Ke1 {[%clk 0:00:14]}  Rxc2 {[%clk 0:00:12]} 36. Rxb7+ {[%clk 0:00:14]}  Kf6 {[%clk 0:00:12]} 37. Rf7+ {[%clk 0:00:13]}  Ke5 {[%clk 0:00:13]} 38. b3 {[%clk 0:00:13]}  Nb2 {[%clk 0:00:09]} 39. Rf5+ {[%clk 0:00:12]}  Kd4 {[%clk 0:00:09]} 40. Rxg5 {[%clk 0:00:13]}  Nd3+ {[%clk 0:00:08]} 41. Kf1 {[%clk 0:00:13]}  Rxf2+ {[%clk 0:00:08]} 42. Kg1 {[%clk 0:00:14]}  Rb2 {[%clk 0:00:07]} 43. Rg4+ {[%clk 0:00:14]}  Kc3 {[%clk 0:00:07]} 44. Rxh4 {[%clk 0:00:15]}  Rxb3 {[%clk 0:00:07]} 45. Bf5 {[%clk 0:00:14]}  c4 {[%clk 0:00:07]} 46. Rh6 {[%clk 0:00:13]}  Rb1+ {[%clk 0:00:06]} 47. Kg2 {[%clk 0:00:13]}  Nf4+ {[%clk 0:00:04]} 48. Kf3 {[%clk 0:00:13]}  Nxd5 {[%clk 0:00:04]} 49. Bxb1 {[%clk 0:00:13]} 1-0


[Site "https://www.chess.com"]

[Event "Titled Tuesday Blitz April 25 Early 2023"]
[White "Luong Phuong Hanh"]
[Black "Skvortsov, Andrei"]
[WhiteFideId "12401013"]
[BlackFideId "24108600"]
[WhiteElo "2081"]
[BlackElo "2259"]
[Result "0-1"]
[Round "01"]
[TimeControl "180+2"]
[Date "2023.04.25"]
[WhiteClock "0:00:04"]
[BlackClock "0:00:31"]

1. d4 {[%clk 0:02:57]}  e6 {[%clk 0:02:55]} 2. Nf3 {[%clk 0:02:56]}  c5 {[%clk 0:02:55]} 3. e3 {[%clk 0:02:55]}  Nf6 {[%clk 0:02:54]} 4. Be2 {[%clk 0:02:54]}  b6 {[%clk 0:02:54]} 5. O-O {[%clk 0:02:54]}  Bb7 {[%clk 0:02:54]} 6. c4 {[%clk 0:02:54]}  Be7 {[%clk 0:02:49]} 7. Nc3 {[%clk 0:02:54]}  cxd4 {[%clk 0:02:48]} 8. exd4 {[%clk 0:02:54]}  d5 {[%clk 0:02:48]} 9. cxd5 {[%clk 0:02:54]}  Nxd5 {[%clk 0:02:47]} 10. Ne5 {[%clk 0:02:54]}  O-O {[%clk 0:02:44]} 11. Bf3 {[%clk 0:02:53]}  Nc6 {[%clk 0:02:30]} 12. Nxd5 {[%clk 0:02:50]}  exd5 {[%clk 0:02:28]} 13. Bf4 {[%clk 0:02:46]}  Bf6 {[%clk 0:02:21]} 14. Rc1 {[%clk 0:02:44]}  Ne7 {[%clk 0:02:18]} 15. Ng4 {[%clk 0:02:40]}  Bh4 {[%clk 0:02:14]} 16. g3 {[%clk 0:02:36]}  Bf6 {[%clk 0:02:07]} 17. Nxf6+ {[%clk 0:02:36]}  gxf6 {[%clk 0:02:08]} 18. Bh6 {[%clk 0:02:06]}  Re8 {[%clk 0:02:07]} 19. h4 {[%clk 0:02:06]}  Nf5 {[%clk 0:02:01]} 20. Bf4 {[%clk 0:02:03]}  Ng7 {[%clk 0:02:01]} 21. Qb3 {[%clk 0:01:14]}  Ne6 {[%clk 0:01:51]} 22. Be3 {[%clk 0:01:09]}  Qd7 {[%clk 0:01:27]} 23. Bg4 {[%clk 0:01:02]}  Rec8 {[%clk 0:01:25]} 24. Qd3 {[%clk 0:00:56]}  Qd6 {[%clk 0:01:20]} 25. Qf5 {[%clk 0:00:53]}  Ng7 {[%clk 0:01:17]} 26. Qf3 {[%clk 0:00:49]}  Re8 {[%clk 0:01:12]} 27. Bf4 {[%clk 0:00:47]}  Qb4 {[%clk 0:01:10]} 28. Be3 {[%clk 0:00:31]}  Qd6 {[%clk 0:01:06]} 29. a3 {[%clk 0:00:27]}  Re4 {[%clk 0:00:56]} 30. Bf4 {[%clk 0:00:25]}  Qd8 {[%clk 0:00:51]} 31. Rfd1 {[%clk 0:00:21]}  Ba6 {[%clk 0:00:49]} 32. Bc7 {[%clk 0:00:17]}  Qe7 {[%clk 0:00:47]} 33. h5 {[%clk 0:00:17]}  Be2 {[%clk 0:00:45]} 34. Qxe4 {[%clk 0:00:06]}  Qxe4 {[%clk 0:00:41]} 35. Bxe2 {[%clk 0:00:07]}  Qxe2 {[%clk 0:00:41]} 36. h6 {[%clk 0:00:05]}  Ne6 {[%clk 0:00:41]} 37. Re1 {[%clk 0:00:04]}  Qh5 {[%clk 0:00:36]} 38. Bd6 {[%clk 0:00:04]}  Qxh6 {[%clk 0:00:35]} 39. Rcd1 {[%clk 0:00:03]}  Rc8 {[%clk 0:00:33]} 40. Bb4 {[%clk 0:00:03]}  Rc2 {[%clk 0:00:32]} 41. Rb1 {[%clk 0:00:04]}  Qg6 {[%clk 0:00:31]} 0-1


[Site "https://www.chess.com"]

[Event "Titled Tuesday Blitz April 25 Early 2023"]
[White "Hua, Lefong"]
[Black "littlepillow2010"]
[WhiteFideId "2602253"]
[WhiteElo "2670"]
[BlackElo "2371"]
[Result "1-0"]
[Round "01"]
[TimeControl "180+2"]
[Date "2023.04.25"]
[WhiteClock "0:01:19"]
[BlackClock "0:00:54"]

1. d4 {[%clk 0:03:00]}  d5 {[%clk 0:02:58]} 2. c4 {[%clk 0:03:01]}  c6 {[%clk 0:02:58]} 3. Nf3 {[%clk 0:03:00]}  Nf6 {[%clk 0:02:59]} 4. Nc3 {[%clk 0:03:01]}  e6 {[%clk 0:02:59]} 5. e3 {[%clk 0:03:01]}  Nbd7 {[%clk 0:02:59]} 6. Qc2 {[%clk 0:03:01]}  Bd6 {[%clk 0:02:57]} 7. b3 {[%clk 0:03:01]}  O-O {[%clk 0:02:56]} 8. Be2 {[%clk 0:03:02]}  Qe7 {[%clk 0:02:55]} 9. Bb2 {[%clk 0:03:02]}  e5 {[%clk 0:02:54]} 10. cxd5 {[%clk 0:03:00]}  cxd5 {[%clk 0:02:55]} 11. Nb5 {[%clk 0:02:49]}  Bb4+ {[%clk 0:02:52]} 12. Bc3 {[%clk 0:02:48]}  Ne4 {[%clk 0:02:45]} 13. O-O {[%clk 0:02:35]}  Bxc3 {[%clk 0:02:37]} 14. Nxc3 {[%clk 0:02:34]}  Nxc3 {[%clk 0:02:35]} 15. Qxc3 {[%clk 0:02:34]}  e4 {[%clk 0:02:35]} 16. Nd2 {[%clk 0:02:29]}  Nb6 {[%clk 0:02:16]} 17. Rfc1 {[%clk 0:02:26]}  Bd7 {[%clk 0:01:45]} 18. Qc7 {[%clk 0:02:18]}  Rab8 {[%clk 0:01:38]} 19. Qc5 {[%clk 0:01:53]}  Qe6 {[%clk 0:01:29]} 20. Qa5 {[%clk 0:01:48]}  a6 {[%clk 0:01:26]} 21. Rc5 {[%clk 0:01:32]}  Rfc8 {[%clk 0:01:21]} 22. Rac1 {[%clk 0:01:27]}  Bc6 {[%clk 0:01:04]} 23. Qxb6 {[%clk 0:01:25]}  Qd6 {[%clk 0:00:54]} 24. b4 {[%clk 0:01:19]} 1-0


[Site "https://www.chess.com"]

[Event "Titled Tuesday Blitz April 25 Early 2023"]
[White "Jaracz, Pawel"]
[Black "Xie, Bryan"]
[WhiteFideId "1102222"]
[BlackFideId "30941296"]
[WhiteElo "2438"]
[BlackElo "2033"]
[Result "1-0"]
[Round "01"]
[TimeControl "180+2"]
[Date "2023.04.25"]
[WhiteClock "0:00:44"]
[BlackClock "0:00:07"]

1. e4 {[%clk 0:02:58]}  c5 {[%clk 0:02:59]} 2. Nc3 {[%clk 0:02:57]}  Nc6 {[%clk 0:02:59]} 3. Bb5 {[%clk 0:02:57]}  Nd4 {[%clk 0:02:59]} 4. a4 {[%clk 0:02:52]}  e6 {[%clk 0:02:57]} 5. Nge2 {[%clk 0:02:50]}  a6 {[%clk 0:02:45]} 6. Bc4 {[%clk 0:02:49]}  Nf6 {[%clk 0:02:42]} 7. O-O {[%clk 0:02:46]}  Nc6 {[%clk 0:02:40]} 8. d3 {[%clk 0:02:38]}  d6 {[%clk 0:02:25]} 9. Ng3 {[%clk 0:02:34]}  Be7 {[%clk 0:02:25]} 10. Bg5 {[%clk 0:02:21]}  O-O {[%clk 0:02:24]} 11. Ba2 {[%clk 0:02:09]}  Rb8 {[%clk 0:01:40]} 12. f4 {[%clk 0:01:48]}  h6 {[%clk 0:01:38]} 13. Bh4 {[%clk 0:01:48]}  b5 {[%clk 0:01:22]} 14. f5 {[%clk 0:01:43]}  b4 {[%clk 0:01:07]} 15. Nce2 {[%clk 0:01:42]}  Ng4 {[%clk 0:01:03]} 16. Bxe7 {[%clk 0:01:41]}  Qxe7 {[%clk 0:01:03]} 17. Qd2 {[%clk 0:01:19]}  Nge5 {[%clk 0:00:54]} 18. f6 {[%clk 0:01:18]}  gxf6 {[%clk 0:00:39]} 19. Qxh6 {[%clk 0:01:16]}  Ng4 {[%clk 0:00:31]} 20. Qh5 {[%clk 0:01:13]}  f5 {[%clk 0:00:25]} 21. exf5 {[%clk 0:01:05]}  exf5 {[%clk 0:00:22]} 22. Nf4 {[%clk 0:01:05]}  Qe3+ {[%clk 0:00:22]} 23. Kh1 {[%clk 0:01:04]}  Nce5 {[%clk 0:00:16]} 24. Qg5+ {[%clk 0:00:56]}  Kh7 {[%clk 0:00:13]} 25. Qh4+ {[%clk 0:00:46]}  Kg8 {[%clk 0:00:12]} 26. Ngh5 {[%clk 0:00:45]}  Ng6 {[%clk 0:00:07]} 27. Nxg6 {[%clk 0:00:44]} 1-0


[Site "https://www.chess.com"]

[Event "Titled Tuesday Blitz April 25 Early 2023"]
[White "Fernandez Garcia, Gumersindo"]
[Black "Antal, Gergely"]
[WhiteFideId "24516740"]
[BlackFideId "717312"]
[WhiteElo "2093"]
[BlackElo "2471"]
[Result "0-1"]
[Round "01"]
[TimeControl "180+2"]
[Date "2023.04.25"]
[WhiteClock "0:00:15"]
[BlackClock "0:00:40"]

1. d4 {[%clk 0:02:56]}  f5 {[%clk 0:02:57]} 2. c4 {[%clk 0:02:55]}  Nf6 {[%clk 0:02:56]} 3. Nc3 {[%clk 0:02:56]}  e6 {[%clk 0:02:57]} 4. Nf3 {[%clk 0:02:53]}  Bb4 {[%clk 0:02:55]} 5. Qc2 {[%clk 0:02:52]}  b6 {[%clk 0:02:55]} 6. Bd2 {[%clk 0:02:49]}  Bb7 {[%clk 0:02:55]} 7. e3 {[%clk 0:02:45]}  O-O {[%clk 0:02:55]} 8. Bd3 {[%clk 0:02:43]}  Qe7 {[%clk 0:02:54]} 9. a3 {[%clk 0:02:41]}  Bxc3 {[%clk 0:02:54]} 10. Bxc3 {[%clk 0:02:41]}  Ne4 {[%clk 0:02:54]} 11. O-O-O {[%clk 0:02:32]}  a5 {[%clk 0:02:47]} 12. Rhg1 {[%clk 0:02:21]}  Nxc3 {[%clk 0:02:32]} 13. Qxc3 {[%clk 0:02:20]}  a4 {[%clk 0:02:33]} 14. d5 {[%clk 0:01:46]}  exd5 {[%clk 0:02:29]} 15. cxd5 {[%clk 0:01:46]}  Ra5 {[%clk 0:02:16]} 16. Kb1 {[%clk 0:01:39]}  Rc5 {[%clk 0:02:14]} 17. Qb4 {[%clk 0:01:32]}  Bxd5 {[%clk 0:02:15]} 18. Qxa4 {[%clk 0:01:24]}  Nc6 {[%clk 0:02:15]} 19. Nd4 {[%clk 0:01:21]}  Ra5 {[%clk 0:01:57]} 20. Nxc6 {[%clk 0:01:13]}  dxc6 {[%clk 0:01:58]} 21. Qc2 {[%clk 0:01:10]}  g6 {[%clk 0:01:48]} 22. Bc4 {[%clk 0:01:09]}  Rc5 {[%clk 0:01:33]} 23. Bxd5+ {[%clk 0:01:09]}  cxd5 {[%clk 0:01:33]} 24. Qd3 {[%clk 0:01:09]}  Qe4 {[%clk 0:01:31]} 25. f3 {[%clk 0:01:06]}  Qxd3+ {[%clk 0:01:26]} 26. Rxd3 {[%clk 0:01:06]}  c6 {[%clk 0:01:27]} 27. b4 {[%clk 0:01:02]}  Rc4 {[%clk 0:01:27]} 28. Kb2 {[%clk 0:01:01]}  Re8 {[%clk 0:01:24]} 29. Rc1 {[%clk 0:00:44]}  b5 {[%clk 0:01:19]} 30. Rcc3 {[%clk 0:00:43]}  Kf7 {[%clk 0:01:18]} 31. Kc2 {[%clk 0:00:42]}  Ke6 {[%clk 0:01:16]} 32. Kd2 {[%clk 0:00:42]}  Ra8 {[%clk 0:01:15]} 33. e4 {[%clk 0:00:32]}  fxe4 {[%clk 0:01:14]} 34. fxe4 {[%clk 0:00:33]}  dxe4 {[%clk 0:01:10]} 35. Rxc4 {[%clk 0:00:31]}  bxc4 {[%clk 0:01:09]} 36. Rd4 {[%clk 0:00:30]}  Rxa3 {[%clk 0:00:59]} 37. Rxe4+ {[%clk 0:00:30]}  Kd5 {[%clk 0:00:59]} 38. Re7 {[%clk 0:00:29]}  h5 {[%clk 0:00:52]} 39. Rd7+ {[%clk 0:00:27]}  Ke6 {[%clk 0:00:52]} 40. Rg7 {[%clk 0:00:27]}  Ra2+ {[%clk 0:00:48]} 41. Kc3 {[%clk 0:00:26]}  Rxg2 {[%clk 0:00:48]} 42. Kxc4 {[%clk 0:00:24]}  Kf5 {[%clk 0:00:48]} 43. h4 {[%clk 0:00:23]}  Rg4+ {[%clk 0:00:42]} 44. Kc5 {[%clk 0:00:23]}  Rxh4 {[%clk 0:00:43]} 45. Rf7+ {[%clk 0:00:22]}  Kg5 {[%clk 0:00:40]} 46. Rd7 {[%clk 0:00:19]}  Rh1 {[%clk 0:00:39]} 47. Kxc6 {[%clk 0:00:19]}  Rc1+ {[%clk 0:00:39]} 48. Kb6 {[%clk 0:00:17]}  h4 {[%clk 0:00:39]} 49. b5 {[%clk 0:00:17]}  h3 {[%clk 0:00:40]} 50. Rd3 {[%clk 0:00:16]}  h2 {[%clk 0:00:39]} 51. Rg3+ {[%clk 0:00:16]}  Kf5 {[%clk 0:00:39]} 52. Rf3+ {[%clk 0:00:16]}  Ke4 {[%clk 0:00:39]} 53. Rh3 {[%clk 0:00:14]}  h1=Q {[%clk 0:00:39]} 54. Rxh1 {[%clk 0:00:15]}  Rxh1 {[%clk 0:00:40]} 0-1


[Site "https://www.chess.com"]

[Event "Titled Tuesday Blitz April 25 Early 2023"]
[White "Lewicki, Miroslaw"]
[Black "BenchGM"]
[WhiteFideId "1113380"]
[WhiteElo "2212"]
[BlackElo "2363"]
[Result "1-0"]
[Round "01"]
[TimeControl "180+2"]
[Date "2023.04.25"]
[WhiteClock "0:00:03"]
[BlackClock "0:00:02"]

1. g3 {[%clk 0:02:57]}  d5 {[%clk 0:02:57]} 2. Bg2 {[%clk 0:02:55]}  Nf6 {[%clk 0:02:54]} 3. Nf3 {[%clk 0:02:54]}  e6 {[%clk 0:02:54]} 4. O-O {[%clk 0:02:55]}  Be7 {[%clk 0:02:47]} 5. b3 {[%clk 0:02:52]}  O-O {[%clk 0:02:46]} 6. Bb2 {[%clk 0:02:52]}  c5 {[%clk 0:02:46]} 7. d4 {[%clk 0:02:52]}  b6 {[%clk 0:02:44]} 8. dxc5 {[%clk 0:02:52]}  bxc5 {[%clk 0:02:44]} 9. Ne5 {[%clk 0:02:52]}  Bb7 {[%clk 0:02:43]} 10. Nd2 {[%clk 0:02:51]}  Nbd7 {[%clk 0:02:44]} 11. Ndf3 {[%clk 0:02:49]}  Qc7 {[%clk 0:02:38]} 12. Nxd7 {[%clk 0:02:44]}  Nxd7 {[%clk 0:02:36]} 13. Qd2 {[%clk 0:02:44]}  Bf6 {[%clk 0:02:34]} 14. Bxf6 {[%clk 0:02:42]}  Nxf6 {[%clk 0:02:34]} 15. Qg5 {[%clk 0:02:29]}  Ne4 {[%clk 0:02:17]} 16. Qh4 {[%clk 0:02:29]}  h6 {[%clk 0:02:11]} 17. c4 {[%clk 0:02:11]}  Rad8 {[%clk 0:01:34]} 18. cxd5 {[%clk 0:02:07]}  exd5 {[%clk 0:01:34]} 19. Rac1 {[%clk 0:02:07]}  d4 {[%clk 0:01:16]} 20. Rc2 {[%clk 0:01:33]}  Nc3 {[%clk 0:01:13]} 21. e3 {[%clk 0:01:33]}  Be4 {[%clk 0:00:59]} 22. Rb2 {[%clk 0:01:19]}  Qc6 {[%clk 0:00:55]} 23. Ne5 {[%clk 0:01:04]}  Qd5 {[%clk 0:00:55]} 24. Bxe4 {[%clk 0:01:00]}  Qxe5 {[%clk 0:00:51]} 25. Bg2 {[%clk 0:00:52]}  dxe3 {[%clk 0:00:51]} 26. fxe3 {[%clk 0:00:50]}  Qxe3+ {[%clk 0:00:51]} 27. Kh1 {[%clk 0:00:50]}  Nd1 {[%clk 0:00:40]} 28. Rc2 {[%clk 0:00:43]}  Qd3 {[%clk 0:00:20]} 29. Rc1 {[%clk 0:00:15]}  Ne3 {[%clk 0:00:19]} 30. Rf2 {[%clk 0:00:15]}  Nxg2 {[%clk 0:00:16]} 31. Rxg2 {[%clk 0:00:16]}  Qf3 {[%clk 0:00:15]} 32. Qf4 {[%clk 0:00:12]}  Rd1+ {[%clk 0:00:13]} 33. Rxd1 {[%clk 0:00:11]}  Qxd1+ {[%clk 0:00:14]} 34. Rg1 {[%clk 0:00:12]}  Qd5+ {[%clk 0:00:14]} 35. Rg2 {[%clk 0:00:13]}  Re8 {[%clk 0:00:13]} 36. Qf2 {[%clk 0:00:11]}  Qd1+ {[%clk 0:00:11]} 37. Rg1 {[%clk 0:00:11]}  Qd5+ {[%clk 0:00:11]} 38. Rg2 {[%clk 0:00:11]}  Qd1+ {[%clk 0:00:04]} 39. Rg1 {[%clk 0:00:11]}  Qd4 {[%clk 0:00:04]} 40. Qg2 {[%clk 0:00:05]}  Re3 {[%clk 0:00:03]} 41. h4 {[%clk 0:00:04]}  Qd3 {[%clk 0:00:03]} 42. Rf1 {[%clk 0:00:04]}  Re2 {[%clk 0:00:02]} 43. Rf2 {[%clk 0:00:03]}  Re1+ {[%clk 0:00:02]} 44. Kh2 {[%clk 0:00:03]}  Re3 {[%clk 0:00:02]} 45. h5 {[%clk 0:00:03]}  f6 {[%clk 0:00:02]} 46. Qa8+ {[%clk 0:00:03]} 1-0


[Site "https://www.chess.com"]